[Event "Irish Championship 2026"]
[Site "Talbot Hotel Stillorgan, Co.Dublin, IE"]
[Date "2026.08.07"]
[Round "7"]
[White "Mulukutla, Ayaansh"]
[Black "Stokes, Stephen"]
[Result "1/2-1/2"]
[Board "79"]
[TimeControl "40/5400+30:1800+30"]
[WhiteFideId "33391998"]
[BlackFideId "2503530"]
[WhiteElo "1839"]
[BlackElo "1885"]
[WhiteClock "0:09:07"]
[BlackClock "0:08:06"]
[Variant "Standard"]
[EndDate "2026.08.07"]
[EndTime "17:16:57"]

1. d4 {[%clk 1:30:50]}  d5 {[%clk 1:28:19]} 2. c4 {[%clk 1:31:10]}  e6 {[%clk 1:28:30]} 3. Nc3 {[%clk 1:31:07]}  Nf6 {[%clk 1:28:42]}
4. Bg5 {[%clk 1:31:19]}  Be7 {[%clk 1:29:04]} 5. cxd5 {[%clk 1:30:40]}  exd5 {[%clk 1:29:16]} 6. e3 {[%clk 1:31:02]}  O-O {[%clk 1:29:20]}
7. Bd3 {[%clk 1:31:19]}  h6 {[%clk 1:28:35]} 8. Bh4 {[%clk 1:31:25]}  c6 {[%clk 1:27:10]} 9. Nge2 {[%clk 1:31:21]}  Nbd7 {[%clk 1:26:24]}
10. O-O {[%clk 1:30:16]}  Ne4 {[%clk 1:24:45]} 11. Bxe7 {[%clk 1:24:15]}  Qxe7 {[%clk 1:24:58]} 12. Ng3 {[%clk 1:18:11]}  f5 {[%clk 1:22:30]}
13. Re1 {[%clk 1:14:57]}  Ndf6 {[%clk 1:17:44]} 14. f3 {[%clk 1:06:53]}  Nxg3 {[%clk 1:15:06]} 15. hxg3 {[%clk 1:07:06]}  Qd6 {[%clk 1:14:08]}
16. Kf2 {[%clk 1:02:46]}  Ng4+ {[%clk 0:46:48]} 17. fxg4 {[%clk 0:55:28]}  fxg4+ {[%clk 0:43:56]} 18. Kg1 {[%clk 0:55:33]}  Qxg3 {[%clk 0:44:18]}
19. Re2 {[%clk 0:49:38]}  Qh4 {[%clk 0:41:46]} 20. g3 {[%clk 0:44:34]}  Qxg3+ {[%clk 0:38:23]} 21. Kh1 {[%clk 0:40:21]}  Qf3+ {[%clk 0:26:49]}
22. Kg1 {[%clk 0:39:46]}  g3 {[%clk 0:19:34]} 23. Qf1 {[%clk 0:24:11]}  Qh5 {[%clk 0:14:38]} 24. Bh7+ {[%clk 0:23:56]}  Kxh7 {[%clk 0:15:01]}
25. Qxf8 {[%clk 0:24:23]}  Bg4 {[%clk 0:15:05]} 26. Qf1 {[%clk 0:22:47]}  Rf8 {[%clk 0:11:48]} 27. Qxf8 {[%clk 0:20:09]}  Bxe2 {[%clk 0:11:59]}
28. Nxe2 {[%clk 0:18:55]}  Qxe2 {[%clk 0:07:37]} 29. Qf5+ {[%clk 0:15:51]}  Kg8 {[%clk 0:07:58]} 30. Qc8+ {[%clk 0:16:06]}  Kh7 {[%clk 0:08:10]}
31. Qf5+ {[%clk 0:16:28]}  Kg8 {[%clk 0:08:06]} 32. Qc8+ {[%clk 0:09:07]} 1/2-1/2

[Event "Irish Championship 2026"]
[Site "Talbot Hotel Stillorgan, Co.Dublin, IE"]
[Date "2026.08.07"]
[Round "7"]
[White "Lorigan, Maxim"]
[Black "Singhal, Vivaan"]
[Result "0-1"]
[Board "80"]
[TimeControl "40/5400+30:1800+30"]
[WhiteFideId "2518198"]
[BlackFideId "2516721"]
[WhiteElo "1762"]
[BlackElo "1878"]
[WhiteClock "0:00:31"]
[BlackClock "0:05:45"]
[Variant "Standard"]
[EndDate "2026.08.07"]
[EndTime "17:28:18"]

1. d4 {[%clk 1:30:43]}  Nf6 {[%clk 1:30:53]} 2. c4 {[%clk 1:30:56]}  e6 {[%clk 1:31:05]} 3. Nc3 {[%clk 1:30:22]}  Bb4 {[%clk 1:31:25]}
4. e3 {[%clk 1:30:45]}  b6 {[%clk 1:30:39]} 5. Nf3 {[%clk 1:30:42]}  Bb7 {[%clk 1:30:05]} 6. Bd3 {[%clk 1:29:55]}  Ne4 {[%clk 1:28:05]}
7. Qc2 {[%clk 1:28:35]}  f5 {[%clk 1:27:33]} 8. a3 {[%clk 1:15:37]}  Bxc3+ {[%clk 1:25:08]} 9. bxc3 {[%clk 1:16:04]}  O-O {[%clk 1:24:22]}
10. Bb2 {[%clk 1:05:43]}  d6 {[%clk 1:19:37]} 11. Rg1 {[%clk 0:59:18]}  Nd7 {[%clk 1:13:38]} 12. g4 {[%clk 0:50:35]}  Nxf2 {[%clk 0:53:42]}
13. Qxf2 {[%clk 0:41:26]}  fxg4 {[%clk 0:51:46]} 14. Qh4 {[%clk 0:40:06]}  Bxf3 {[%clk 0:47:46]} 15. Qxh7+ {[%clk 0:35:24]}  Kf7 {[%clk 0:48:04]}
16. Qg6+ {[%clk 0:35:08]}  Ke7 {[%clk 0:38:17]} 17. Qxg7+ {[%clk 0:32:23]}  Rf7 {[%clk 0:38:32]} 18. Qg5+ {[%clk 0:31:35]}  Nf6 {[%clk 0:34:11]}
19. d5 {[%clk 0:19:16]}  Qg8 {[%clk 0:31:00]} 20. Qxg8 {[%clk 0:16:42]}  Rxg8 {[%clk 0:30:44]} 21. dxe6 {[%clk 0:13:05]}  Kxe6 {[%clk 0:29:29]}
22. Bc1 {[%clk 0:11:16]}  Ne4 {[%clk 0:22:30]} 23. Bxe4 {[%clk 0:10:12]}  Bxe4 {[%clk 0:22:44]} 24. Ra2 {[%clk 0:10:01]}  Rh7 {[%clk 0:15:10]}
25. Rf2 {[%clk 0:08:36]}  Bd3 {[%clk 0:10:58]} 26. Rfg2 {[%clk 0:05:44]}  Rh4 {[%clk 0:06:28]} 27. c5 {[%clk 0:03:52]}  bxc5 {[%clk 0:05:32]}
28. Kd2 {[%clk 0:02:29]}  Be4 {[%clk 0:05:14]} 29. Rf2 {[%clk 0:03:40]}  Rgh8 {[%clk 0:05:38]} 30. Ke1 {[%clk 0:02:58]}  Bf3 {[%clk 0:05:38]}
31. Rg3 {[%clk 0:00:35]}  Rxh2 {[%clk 0:05:34]} 32. Rf1 {[%clk 0:00:31]}  Re2+ {[%clk 0:05:45]} 0-1

[Event "Irish Championship 2026"]
[Site "Talbot Hotel Stillorgan, Co.Dublin, IE"]
[Date "2026.08.07"]
[Round "7"]
[White "Voogt, Declan"]
[Black "Nichenametla V, Advaith"]
[Result "1/2-1/2"]
[Board "81"]
[TimeControl "40/5400+30:1800+30"]
[WhiteFideId "2517388"]
[BlackFideId "2516896"]
[WhiteElo "1849"]
[BlackElo "1943"]
[WhiteClock "0:04:40"]
[BlackClock "0:03:07"]
[Variant "Standard"]
[EndDate "2026.08.07"]
[EndTime "17:36:16"]

1. Nf3 {[%clk 1:30:51]}  d5 {[%clk 1:30:46]} 2. g3 {[%clk 1:31:17]}  Nf6 {[%clk 1:31:08]} 3. Bg2 {[%clk 1:31:42]}  e6 {[%clk 1:31:36]}
4. O-O {[%clk 1:31:57]}  Be7 {[%clk 1:32:02]} 5. d4 {[%clk 1:32:22]}  O-O {[%clk 1:32:22]} 6. c4 {[%clk 1:32:49]}  dxc4 {[%clk 1:32:41]}
7. Ne5 {[%clk 1:29:19]}  c6 {[%clk 1:16:26]} 8. a4 {[%clk 1:29:05]}  Nbd7 {[%clk 1:12:44]} 9. Nxc4 {[%clk 1:29:26]}  Nd5 {[%clk 1:05:28]}
10. e4 {[%clk 1:28:16]}  N5b6 {[%clk 1:05:52]} 11. Ne3 {[%clk 1:24:36]}  a5 {[%clk 1:04:28]} 12. Nc3 {[%clk 1:22:48]}  f5 {[%clk 0:51:10]}
13. Re1 {[%clk 1:08:07]}  Bd6 {[%clk 0:36:05]} 14. Nf1 {[%clk 1:03:38]}  e5 {[%clk 0:24:01]} 15. exf5 {[%clk 0:59:03]}  exd4 {[%clk 0:24:57]}
16. Qxd4 {[%clk 0:55:03]}  Nc5 {[%clk 0:25:13]} 17. Qd1 {[%clk 0:52:51]}  Bxf5 {[%clk 0:25:28]} 18. Be3 {[%clk 0:38:48]}  Nd3 {[%clk 0:17:35]}
19. Re2 {[%clk 0:37:02]}  Nc4 {[%clk 0:16:05]} 20. Qb3 {[%clk 0:31:49]}  Be6 {[%clk 0:12:43]} 21. Qxb7 {[%clk 0:26:42]}  Nce5 {[%clk 0:11:56]}
22. Qb6 {[%clk 0:24:39]}  Qd7 {[%clk 0:11:09]} 23. Qd4 {[%clk 0:23:21]}  c5 {[%clk 0:09:02]} 24. Qe4 {[%clk 0:22:59]}  Rae8 {[%clk 0:07:41]}
25. Nb5 {[%clk 0:20:30]}  Kh8 {[%clk 0:06:13]} 26. Qb7 {[%clk 0:17:36]}  Qxb7 {[%clk 0:04:53]} 27. Bxb7 {[%clk 0:17:44]}  Be7 {[%clk 0:04:33]}
28. Nc7 {[%clk 0:17:23]}  Bg4 {[%clk 0:04:09]} 29. Rc2 {[%clk 0:16:57]}  Rb8 {[%clk 0:04:29]} 30. Be4 {[%clk 0:14:01]}  Rxb2 {[%clk 0:04:04]}
31. Rxb2 {[%clk 0:13:04]}  Nxb2 {[%clk 0:04:31]} 32. Nd5 {[%clk 0:13:22]}  Bd6 {[%clk 0:04:36]} 33. Bd2 {[%clk 0:13:33]}  Bf3 {[%clk 0:04:46]}
34. Bxf3 {[%clk 0:13:18]}  Nxf3+ {[%clk 0:05:16]} 35. Kg2 {[%clk 0:13:46]}  Be5 {[%clk 0:05:23]} 36. Bc3 {[%clk 0:10:52]}  Bxc3 {[%clk 0:04:33]}
37. Nxc3 {[%clk 0:10:13]}  h6 {[%clk 0:04:17]} 38. Ne3 {[%clk 0:09:12]}  Nd4 {[%clk 0:04:14]} 39. Ra2 {[%clk 0:09:07]}  Nd3 {[%clk 0:04:14]}
40. Rd2 {[%clk 0:08:13]}  Ne1+ {[%clk 0:03:07]} 41. Kh1 {[%clk 0:04:40]} 1/2-1/2

[Event "Irish Championship 2026"]
[Site "Talbot Hotel Stillorgan, Co.Dublin, IE"]
[Date "2026.08.07"]
[Round "7"]
[White "Fox, Anthony"]
[Black "Heron, Lorcan"]
[Result "1-0"]
[Board "82"]
[TimeControl "40/5400+30:1800+30"]
[WhiteFideId "2500736"]
[BlackFideId "2529343"]
[WhiteElo "1876"]
[BlackElo "1926"]
[WhiteClock "0:13:25"]
[BlackClock "0:01:43"]
[Variant "Standard"]
[EndDate "2026.08.07"]
[EndTime "17:26:14"]

1. e4 {[%clk 1:30:57]}  e5 {[%clk 1:30:42]} 2. Nf3 {[%clk 1:31:17]}  Nc6 {[%clk 1:31:08]} 3. Bb5 {[%clk 1:31:34]}  f5 {[%clk 1:31:17]}
4. d3 {[%clk 1:30:31]}  fxe4 {[%clk 1:31:42]} 5. dxe4 {[%clk 1:30:52]}  Nf6 {[%clk 1:32:06]} 6. O-O {[%clk 1:30:46]}  Bc5 {[%clk 1:32:30]}
7. Qd3 {[%clk 1:28:32]}  d6 {[%clk 1:32:42]} 8. Qc4 {[%clk 1:26:46]}  Qd7 {[%clk 1:29:06]} 9. Nxe5 {[%clk 1:17:11]}  Nxe5 {[%clk 1:18:51]}
10. Qe6+ {[%clk 1:11:50]}  Kd8 {[%clk 1:18:37]} 11. Bxd7 {[%clk 1:12:14]}  Bxd7 {[%clk 1:19:04]} 12. Qb3 {[%clk 1:11:19]}  Nxe4 {[%clk 1:16:04]}
13. Be3 {[%clk 1:07:38]}  Bc6 {[%clk 1:04:31]} 14. Nd2 {[%clk 1:01:19]}  Nxd2 {[%clk 0:52:03]} 15. Bxd2 {[%clk 1:01:31]}  Rf8 {[%clk 0:49:43]}
16. Be3 {[%clk 0:55:14]}  Bb6 {[%clk 0:47:59]} 17. Rad1 {[%clk 0:45:32]}  Kc8 {[%clk 0:45:48]} 18. Bxb6 {[%clk 0:45:08]}  axb6 {[%clk 0:45:49]}
19. f4 {[%clk 0:44:09]}  Ng6 {[%clk 0:27:00]} 20. g3 {[%clk 0:42:50]}  Ra5 {[%clk 0:25:49]} 21. Rd2 {[%clk 0:37:35]}  Raf5 {[%clk 0:21:48]}
22. Rdf2 {[%clk 0:30:19]}  Kb8 {[%clk 0:15:27]} 23. c4 {[%clk 0:29:38]}  R5f6 {[%clk 0:13:59]} 24. Qc2 {[%clk 0:26:10]}  b5 {[%clk 0:10:59]}
25. cxb5 {[%clk 0:21:55]}  Bxb5 {[%clk 0:11:23]} 26. Rc1 {[%clk 0:22:12]}  R8f7 {[%clk 0:10:34]} 27. a4 {[%clk 0:22:21]}  Bc6 {[%clk 0:09:35]}
28. b4 {[%clk 0:22:26]}  Re7 {[%clk 0:07:17]} 29. b5 {[%clk 0:22:31]}  Be4 {[%clk 0:07:25]} 30. Qc3 {[%clk 0:21:41]}  d5 {[%clk 0:07:35]}
31. a5 {[%clk 0:21:40]}  Rd6 {[%clk 0:05:17]} 32. Qb4 {[%clk 0:17:28]}  Rf6 {[%clk 0:03:27]} 33. Qd4 {[%clk 0:16:41]}  b6 {[%clk 0:03:46]}
34. Ra2 {[%clk 0:16:27]}  Ref7 {[%clk 0:03:00]} 35. axb6 {[%clk 0:16:36]}  Rxb6 {[%clk 0:03:11]} 36. Qa4 {[%clk 0:16:07]}  Kc8 {[%clk 0:02:56]}
37. Qa8+ {[%clk 0:14:49]}  Kd7 {[%clk 0:03:10]} 38. Ra7 {[%clk 0:14:22]}  Kd6 {[%clk 0:01:43]} 39. Rc6+ {[%clk 0:13:25]} 1-0

[Event "Irish Championship 2026"]
[Site "Talbot Hotel Stillorgan, Co.Dublin, IE"]
[Date "2026.08.07"]
[Round "7"]
[White "Field, Lila Quinn"]
[Black "Liu, Murray"]
[Result "1-0"]
[Board "83"]
[TimeControl "40/5400+30:1800+30"]
[WhiteFideId "30941334"]
[BlackFideId "2517191"]
[WhiteElo "1898"]
[BlackElo "1885"]
[WhiteClock "1:07:36"]
[BlackClock "0:15:26"]
[Variant "Standard"]
[EndDate "2026.08.07"]
[EndTime "15:57:10"]

1. e4 {[%clk 1:30:57]}  c5 {[%clk 1:30:26]} 2. Nf3 {[%clk 1:31:19]}  d6 {[%clk 1:30:39]} 3. d4 {[%clk 1:31:42]}  cxd4 {[%clk 1:30:58]}
4. Nxd4 {[%clk 1:32:04]}  Nf6 {[%clk 1:31:03]} 5. Nc3 {[%clk 1:32:26]}  g6 {[%clk 1:31:11]} 6. Be3 {[%clk 1:32:42]}  Bg7 {[%clk 1:31:17]}
7. f3 {[%clk 1:33:04]}  O-O {[%clk 1:31:20]} 8. Qd2 {[%clk 1:33:26]}  Nc6 {[%clk 1:31:36]} 9. O-O-O {[%clk 1:33:46]}  d5 {[%clk 1:31:29]}
10. Nxc6 {[%clk 1:33:41]}  bxc6 {[%clk 1:31:48]} 11. Bh6 {[%clk 1:33:37]}  Bxh6 {[%clk 1:19:27]} 12. Qxh6 {[%clk 1:33:56]}  Rb8 {[%clk 1:07:52]}
13. h4 {[%clk 1:27:31]}  Qb6 {[%clk 0:51:28]} 14. b3 {[%clk 1:27:09]}  dxe4 {[%clk 0:33:58]} 15. h5 {[%clk 1:20:22]}  gxh5 {[%clk 0:16:49]}
16. Nxe4 {[%clk 1:09:06]}  Nxe4 {[%clk 0:15:58]} 17. Rxh5 {[%clk 1:07:15]}  c5 {[%clk 0:15:26]} 18. Qxh7# {[%clk 1:07:36]} 1-0

[Event "Irish Championship 2026"]
[Site "Talbot Hotel Stillorgan, Co.Dublin, IE"]
[Date "2026.08.07"]
[Round "7"]
[White "Biswal, Saiansh"]
[Black "Fitzgerald, Martin"]
[Result "1/2-1/2"]
[Board "84"]
[TimeControl "40/5400+30:1800+30"]
[WhiteFideId "2518155"]
[BlackFideId "2511177"]
[WhiteElo "1824"]
[BlackElo "1891"]
[WhiteClock "0:04:13"]
[BlackClock "0:09:09"]
[Variant "Standard"]
[EndDate "2026.08.07"]
[EndTime "17:20:09"]

1. e4 {[%clk 1:30:51]}  c5 {[%clk 1:30:58]} 2. Nc3 {[%clk 1:31:16]}  Nc6 {[%clk 1:31:24]} 3. Bb5 {[%clk 1:31:43]}  Nd4 {[%clk 1:31:43]}
4. Nf3 {[%clk 1:32:10]}  e6 {[%clk 1:31:55]} 5. Bd3 {[%clk 1:32:08]}  Nc6 {[%clk 1:29:31]} 6. O-O {[%clk 1:32:10]}  a6 {[%clk 1:29:02]}
7. a4 {[%clk 1:32:10]}  d6 {[%clk 1:28:05]} 8. b3 {[%clk 1:32:11]}  Nf6 {[%clk 1:26:33]} 9. Bb2 {[%clk 1:32:13]}  Be7 {[%clk 1:25:32]}
10. Ne2 {[%clk 1:21:45]}  O-O {[%clk 1:18:06]} 11. Ng3 {[%clk 1:11:19]}  b6 {[%clk 1:05:44]} 12. c4 {[%clk 1:10:06]}  Bb7 {[%clk 1:04:50]}
13. Bc2 {[%clk 1:05:24]}  d5 {[%clk 0:57:40]} 14. d3 {[%clk 1:05:05]}  d4 {[%clk 0:50:11]} 15. Ne1 {[%clk 1:02:10]}  e5 {[%clk 0:33:06]}
16. Bc1 {[%clk 1:02:30]}  Bc8 {[%clk 0:31:12]} 17. f4 {[%clk 0:54:08]}  Bg4 {[%clk 0:27:16]} 18. Nf3 {[%clk 0:53:28]}  exf4 {[%clk 0:21:09]}
19. Bxf4 {[%clk 0:50:09]}  Bd6 {[%clk 0:21:34]} 20. Qc1 {[%clk 0:47:43]}  Qc7 {[%clk 0:20:28]} 21. Bxd6 {[%clk 0:44:22]}  Qxd6 {[%clk 0:20:55]}
22. Qd2 {[%clk 0:38:11]}  Nd7 {[%clk 0:16:06]} 23. Rae1 {[%clk 0:35:40]}  Rae8 {[%clk 0:14:54]} 24. Nh4 {[%clk 0:25:48]}  Nde5 {[%clk 0:13:00]}
25. Ngf5 {[%clk 0:21:06]}  Bxf5 {[%clk 0:13:10]} 26. Nxf5 {[%clk 0:21:30]}  Qd7 {[%clk 0:10:09]} 27. Qg5 {[%clk 0:19:01]}  g6 {[%clk 0:09:39]}
28. Nh6+ {[%clk 0:07:57]}  Kg7 {[%clk 0:08:48]} 29. Nf5+ {[%clk 0:06:51]}  Kg8 {[%clk 0:08:51]} 30. Nh6+ {[%clk 0:03:50]}  Kg7 {[%clk 0:09:09]}
31. Nf5+ {[%clk 0:04:13]}  Kg8 {[%clk 0:08:50]} 32. Qf6 {[%clk 0:04:09]}  gxf5 {[%clk 0:08:49]} 33. Rxf5 {[%clk 0:04:08]}  Ng6 {[%clk 0:08:47]}
34. Rd5 {[%clk 0:04:08]}  Qc7 {[%clk 0:09:06]} 35. Rd6 {[%clk 0:04:13]} 1/2-1/2

[Event "Irish Championship 2026"]
[Site "Talbot Hotel Stillorgan, Co.Dublin, IE"]
[Date "2026.08.07"]
[Round "7"]
[White "Doolin, Nemhain"]
[Black "Thomas Boby, Aiden"]
[Result "1/2-1/2"]
[Board "85"]
[TimeControl "40/5400+30:1800+30"]
[WhiteFideId "2517230"]
[BlackFideId "2535688"]
[WhiteElo "1915"]
[BlackElo "1978"]
[WhiteClock "0:26:05"]
[BlackClock "0:39:47"]
[Variant "Standard"]
[EndDate "2026.08.07"]
[EndTime "17:55:03"]

1. e4 {[%clk 1:30:57]}  c5 {[%clk 1:30:52]} 2. Nc3 {[%clk 1:31:24]}  Nc6 {[%clk 1:31:10]} 3. Bb5 {[%clk 1:31:51]}  Nd4 {[%clk 1:31:33]}
4. Nf3 {[%clk 1:32:18]}  a6 {[%clk 1:31:46]} 5. Bd3 {[%clk 1:32:34]}  g6 {[%clk 1:32:08]} 6. Rb1 {[%clk 1:32:59]}  e6 {[%clk 1:23:16]}
7. a3 {[%clk 1:30:40]}  Bg7 {[%clk 1:22:32]} 8. b4 {[%clk 1:25:19]}  d6 {[%clk 1:20:47]} 9. bxc5 {[%clk 1:25:18]}  dxc5 {[%clk 1:21:06]}
10. Na4 {[%clk 1:19:33]}  c4 {[%clk 1:11:07]} 11. Nb6 {[%clk 1:14:13]}  cxd3 {[%clk 1:10:31]} 12. Nxd4 {[%clk 1:12:48]}  Rb8 {[%clk 0:54:53]}
13. Nf3 {[%clk 1:07:52]}  Bd7 {[%clk 0:52:59]} 14. Nxd7 {[%clk 1:02:58]}  Qxd7 {[%clk 0:52:53]} 15. O-O {[%clk 1:01:14]}  Ne7 {[%clk 0:52:58]}
16. Bb2 {[%clk 0:53:42]}  Bxb2 {[%clk 0:52:30]} 17. Rxb2 {[%clk 0:54:06]}  O-O {[%clk 0:52:02]} 18. cxd3 {[%clk 0:49:55]}  Qxd3 {[%clk 0:51:36]}
19. Qb1 {[%clk 0:48:50]}  Qd7 {[%clk 0:49:33]} 20. d4 {[%clk 0:44:46]}  Nc6 {[%clk 0:48:44]} 21. Rd1 {[%clk 0:45:29]}  b5 {[%clk 0:42:48]}
22. Qc1 {[%clk 0:42:16]}  Na5 {[%clk 0:40:15]} 23. Ne5 {[%clk 0:40:23]}  Qd6 {[%clk 0:39:27]} 24. Rc2 {[%clk 0:36:09]}  Rb6 {[%clk 0:31:32]}
25. Qh6 {[%clk 0:30:25]}  Rb7 {[%clk 0:22:24]} 26. Ng4 {[%clk 0:26:29]}  f6 {[%clk 0:20:46]} 27. Nxf6+ {[%clk 0:21:34]}  Rxf6 {[%clk 0:20:47]}
28. e5 {[%clk 0:21:56]}  Qf8 {[%clk 0:21:05]} 29. Qd2 {[%clk 0:19:56]}  Nc4 {[%clk 0:21:08]} 30. Rxc4 {[%clk 0:19:18]}  Rxf2 {[%clk 0:20:31]}
31. Qxf2 {[%clk 0:16:32]}  Qxf2+ {[%clk 0:20:51]} 32. Kxf2 {[%clk 0:16:59]}  bxc4 {[%clk 0:21:15]} 33. Rc1 {[%clk 0:16:00]}  Rb3 {[%clk 0:20:31]}
34. Rxc4 {[%clk 0:14:55]}  Rxa3 {[%clk 0:20:50]} 35. Rc8+ {[%clk 0:14:57]}  Kf7 {[%clk 0:21:03]} 36. Rc7+ {[%clk 0:15:25]}  Kg8 {[%clk 0:20:45]}
37. Re7 {[%clk 0:14:57]}  Rd3 {[%clk 0:20:51]} 38. Rxe6 {[%clk 0:14:38]}  Rxd4 {[%clk 0:21:15]} 39. Rxa6 {[%clk 0:15:03]}  Re4 {[%clk 0:21:14]}
40. Ra5 {[%clk 0:14:31]}  Kf7 {[%clk 0:21:26]} 41. Kf3 {[%clk 0:14:52]}  Re1 {[%clk 0:21:21]} 42. Kf4 {[%clk 0:12:27]}  h6 {[%clk 0:18:28]}
43. Ra7+ {[%clk 0:09:54]}  Ke6 {[%clk 0:16:52]} 44. Ra6+ {[%clk 0:08:38]}  Kf7 {[%clk 0:17:09]} 45. h4 {[%clk 0:07:14]}  Rf1+ {[%clk 0:17:20]}
46. Kg4 {[%clk 0:06:17]}  Re1 {[%clk 0:16:55]} 47. Ra5 {[%clk 0:05:30]}  Ke6 {[%clk 0:17:18]} 48. Kf4 {[%clk 0:05:03]}  Rf1+ {[%clk 0:17:42]}
49. Kg4 {[%clk 0:04:31]}  Re1 {[%clk 0:17:43]} 50. h5 {[%clk 0:02:16]}  gxh5+ {[%clk 0:17:08]} 51. Kh4 {[%clk 0:29:31]}  Re4+ {[%clk 0:46:03]}
52. Kh3 {[%clk 0:28:21]}  Rxe5 {[%clk 0:44:54]} 53. Ra6+ {[%clk 0:27:21]}  Kf5 {[%clk 0:39:13]} 54. Rxh6 {[%clk 0:27:20]}  Kg5 {[%clk 0:39:37]}
55. Rh8 {[%clk 0:27:17]}  Re6 {[%clk 0:39:32]} 56. Ra8 {[%clk 0:26:29]}  Rb6 {[%clk 0:39:24]} 57. Ra5+ {[%clk 0:26:05]}  Kg6 {[%clk 0:39:47]} 1/2-1/2

[Event "Irish Championship 2026"]
[Site "Talbot Hotel Stillorgan, Co.Dublin, IE"]
[Date "2026.08.07"]
[Round "7"]
[White "Greenan, Darragh"]
[Black "Braine, Harry"]
[Result "0-1"]
[Board "86"]
[TimeControl "40/5400+30:1800+30"]
[WhiteFideId "2525607"]
[BlackFideId "2518570"]
[WhiteElo "1786"]
[BlackElo "1948"]
[WhiteClock "0:03:05"]
[BlackClock "0:53:00"]
[Variant "Standard"]
[EndDate "2026.08.07"]
[EndTime "16:34:12"]

1. d4 {[%clk 1:30:57]}  Nf6 {[%clk 1:30:55]} 2. Nf3 {[%clk 1:31:23]}  e6 {[%clk 1:31:18]} 3. b3 {[%clk 1:31:33]}  c5 {[%clk 1:31:35]}
4. e3 {[%clk 1:31:52]}  cxd4 {[%clk 1:31:58]} 5. exd4 {[%clk 1:32:20]}  b6 {[%clk 1:32:06]} 6. Bb2 {[%clk 1:32:01]}  Be7 {[%clk 1:32:12]}
7. Bd3 {[%clk 1:31:38]}  O-O {[%clk 1:32:19]} 8. O-O {[%clk 1:31:06]}  Bb7 {[%clk 1:32:00]} 9. Nbd2 {[%clk 1:27:56]}  Nc6 {[%clk 1:31:14]}
10. a3 {[%clk 1:24:43]}  Re8 {[%clk 1:29:56]} 11. Re1 {[%clk 1:16:02]}  d6 {[%clk 1:27:01]} 12. c4 {[%clk 1:05:30]}  Bf8 {[%clk 1:24:50]}
13. Ne4 {[%clk 0:57:33]}  Ne7 {[%clk 1:16:12]} 14. Nxf6+ {[%clk 0:51:23]}  gxf6 {[%clk 1:16:34]} 15. Nd2 {[%clk 0:47:05]}  f5 {[%clk 1:15:50]}
16. d5 {[%clk 0:38:54]}  Ng6 {[%clk 1:12:20]} 17. Nf3 {[%clk 0:33:13]}  Bg7 {[%clk 1:07:44]} 18. Bxg7 {[%clk 0:32:25]}  Kxg7 {[%clk 1:08:06]}
19. Nd4 {[%clk 0:27:49]}  Qf6 {[%clk 1:06:15]} 20. Bb1 {[%clk 0:22:28]}  Kh8 {[%clk 1:05:46]} 21. Bc2 {[%clk 0:19:47]}  Rg8 {[%clk 1:01:43]}
22. g3 {[%clk 0:14:32]}  Rae8 {[%clk 0:56:48]} 23. Nb5 {[%clk 0:12:20]}  exd5 {[%clk 0:55:37]} 24. Rxe8 {[%clk 0:12:02]}  Rxe8 {[%clk 0:55:58]}
25. cxd5 {[%clk 0:10:35]}  a6 {[%clk 0:54:49]} 26. Nd4 {[%clk 0:10:02]}  Re5 {[%clk 0:53:13]} 27. Nc6 {[%clk 0:05:41]}  Rxd5 {[%clk 0:52:40]}
28. Qxd5 {[%clk 0:05:35]}  Qxa1+ {[%clk 0:53:00]} 29. Bd1 {[%clk 0:03:05]} 0-1

[Event "Irish Championship 2026"]
[Site "Talbot Hotel Stillorgan, Co.Dublin, IE"]
[Date "2026.08.08"]
[Round "8"]
[White "Singhal, Vivaan"]
[Black "Andhurthi, Sreeyan"]
[Result "1/2-1/2"]
[Board "15"]
[TimeControl "40/5400+30:1800+30"]
[WhiteFideId "2516721"]
[BlackFideId "2523531"]
[WhiteElo "1878"]
[BlackElo "1950"]
[WhiteClock "0:51:37"]
[BlackClock "1:13:13"]
[Variant "Standard"]
[EndDate "2026.08.08"]
[EndTime "19:24:50"]

1. d4 {[%clk 1:29:52]}  d5 {[%clk 1:28:18]} 2. Nf3 {[%clk 1:30:04]}  Nf6 {[%clk 1:28:31]} 3. e3 {[%clk 1:30:13]}  c6 {[%clk 1:27:53]}
4. c4 {[%clk 1:30:33]}  g6 {[%clk 1:28:16]} 5. Nc3 {[%clk 1:29:28]}  Bg7 {[%clk 1:28:11]} 6. b3 {[%clk 1:28:50]}  O-O {[%clk 1:28:24]}
7. Bd3 {[%clk 1:28:48]}  Bg4 {[%clk 1:28:43]} 8. h3 {[%clk 1:28:27]}  Bxf3 {[%clk 1:29:05]} 9. Qxf3 {[%clk 1:28:47]}  e6 {[%clk 1:23:10]}
10. Bb2 {[%clk 1:25:03]}  Nbd7 {[%clk 1:23:32]} 11. O-O {[%clk 1:20:52]}  Qe7 {[%clk 1:20:19]} 12. Rfe1 {[%clk 1:15:21]}  Rad8 {[%clk 1:14:17]}
13. e4 {[%clk 1:03:29]}  dxe4 {[%clk 1:13:32]} 14. Nxe4 {[%clk 0:59:47]}  Nxe4 {[%clk 1:13:54]} 15. Bxe4 {[%clk 0:59:10]}  Nc5 {[%clk 1:13:03]}
16. Rad1 {[%clk 0:55:10]}  Nxe4 {[%clk 1:13:13]} 17. Qxe4 {[%clk 0:51:37]} 1/2-1/2